Workbook

Sheet (1) EST SIT FINANCIERA (2)
A3: UNIVERSIDAD TECNOLOGICA DE LOS VALLES CENTRALES DE OAXACA
A4: Estado de Situación Financiera Detallado - LDF
A5: Al 31 de diciembre de 2024 y al 31 de diciembre de 2025
A6: (PESOS)
A7: Concepto | B7: 31 de diciiembre de 2025 | C7: 31 de Diciembre de 2024 | E7: Concepto | F7: =B7 -> 31 de diciiembre de 2025 | G7: =C7 -> 31 de Diciembre de 2024
A9: ACTIVO | E9: PASIVO
A10: Activo Circulante | E10: Pasivo Circulante
A11: Efectivo y Equivalentes | B11: =SUM(B12:B18) -> 4,285,097 | C11: =SUM(C12:C18) -> 4,583,879 | E11: Cuentas por Pagar a Corto Plazo | F11: =SUM(F12:F20) -> 1,360,034 | G11: =SUM(G12:G20) -> 5,327,867
A12: Efectivo | E12: Servicios Personales por Pagar a Corto Plazo
A13: Bancos/Tesorería | B13: 4,285,097 | C13: 4,583,879 | E13: Proveedores por Pagar a Corto Plazo
A14: Bancos/Dependencias y Otros | E14: Contratistas por Obras Públicas por Pagar a Corto Plazo
A15: Inversiones Temporales (Hasta 3 meses) | E15: Participaciones y Aportaciones por Pagar a Corto Plazo
A16: Fondos con Afectación Específica | E16: Transferencias Otorgadas por Pagar a Corto Plazo | F16: 250,208 | G16: 2,815,321
A17: Depósitos de Fondos de Terceros en Garantía y/o Administración | E17: Intereses, Comisiones y Otros Gastos de la Deuda Pública por Pagar a Corto Plazo
A18: Otros Efectivos y Equivalentes | E18: Retenciones y Contribuciones por Pagar a Corto Plazo | F18: =918484.95+99686.27+88742.14 -> 1,106,913 | G18: =856652+121886+84406.51 -> 1,062,945
A19: Derechos a Recibir Efectivo o Equivalentes | B19: =SUM(B20:B26) -> 390 | C19: =SUM(C20:C26) -> 1,414,075 | E19: Devoluciones de la Ley de Ingresos por Pagar a Corto Plazo
A20: Inversiones Financieras de Corto Plazo | E20: Otras Cuentas por Pagar a Corto Plazo | F20: 2,913 | G20: =20000+1429601.74 -> 1,449,602
A21: Cuentas por Cobrar a Corto Plazo | E21: Documentos por Pagar a Corto Plazo | F21: =SUM(F22:F24) -> 0 | G21: =SUM(G22:G24) -> 0
A22: Deudores Diversos por Cobrar a Corto Plazo | B22: 390 | C22: 1,414,075 | E22: Documentos Comerciales por Pagar a Corto Plazo
A23: Ingresos por Recuperar a Corto Plazo | E23: Documentos con Contratistas por Obras Públicas por Pagar a Corto Plazo
A24: Deudores por Anticipos de la Tesorería a Corto Plazo | E24: Otros Documentos por Pagar a Corto Plazo
A25: Préstamos Otorgados a Corto Plazo | E25: Porción a Corto Plazo de la Deuda Pública a Largo Plazo | F25: =F26+F27 -> 0 | G25: =G26+G27 -> 0
A26: Otros Derechos a Recibir Efectivo o Equivalentes a Corto Plazo | E26: Porción a Corto Plazo de la Deuda Pública
A27: Derechos a Recibir Bienes o Servicios | B27: =SUM(B28:B32) -> 0 | C27: =SUM(C28:C32) -> 0 | E27: Porción a Corto Plazo de Arrendamiento Financiero
A28: Anticipo a Proveedores por Adquisición de Bienes y Prestación de Servicios a Corto Plazo | E28: Títulos y Valores a Corto Plazo
A29: Anticipo a Proveedores por Adquisición de Bienes Inmuebles y Muebles a Corto Plazo | E29: Pasivos Diferidos a Corto Plazo | F29: =SUM(F30:F32) -> 0 | G29: =SUM(G30:G32) -> 251,750
A30: Anticipo a Proveedores por Adquisición de Bienes Intangibles a Corto Plazo | E30: Ingresos Cobrados por Adelantado a Corto Plazo
A31: Anticipo a Contratistas por Obras Públicas a Corto Plazo | E31: Intereses Cobrados por Adelantado a Corto Plazo
A32: Otros Derechos a Recibir Bienes o Servicios a Corto Plazo | E32: Otros Pasivos Diferidos a Corto Plazo | F32: 0 | G32: 251,750
A33: Inventarios | B33: =SUM(B34:B38) -> 0 | C33: =SUM(C34:C38) -> 0 | E33: Fondos y Bienes de Terceros en Garantía y/o Administración a Corto Plazo | F33: =SUM(F34:F39) -> 0 | G33: =SUM(G34:G39) -> 0
A34: Inventario de Mercancías para Venta | E34: Fondos en Garantía a Corto Plazo
A35: Inventario de Mercancías Terminadas | E35: Fondos en Administración a Corto Plazo
A36: Inventario de Mercancías en Proceso de Elaboración | E36: Fondos Contingentes a Corto Plazo
A37: Inventario de Materias Primas, Materiales y Suministros para Producción | E37: Fondos de Fideicomisos, Mandatos y Contratos Análogos a Corto Plazo
A38: Bienes en Tránsito | E38: Otros Fondos de Terceros en Garantía y/o Administración a Corto Plazo
A39: Almacenes | E39: Valores y Bienes en Garantía a Corto Plazo
A40: Estimación por Pérdida o Deterioro de Activos Circulantes | B40: =SUM(B41:B42) -> 0 | C40: =SUM(C41:C42) -> 0 | E40: Provisiones a Corto Plazo | F40: =SUM(F41:F43) -> 0 | G40: =SUM(G41:G43) -> 0
A41: Estimaciones para Cuentas Incobrables por Derechos a Recibir Efectivo o Equivalentes | E41: Provisión para Demandas y Juicios a Corto Plazo
A42: Estimación por Deterioro de Inventarios | E42: Provisión para Contingencias a Corto Plazo
A43: Otros Activos Circulantes | B43: =SUM(B44:B47) -> 0 | C43: =SUM(C44:C47) -> 0 | E43: Otras Provisiones a Corto Plazo
A44: Valores en Garantía | E44: Otros Pasivos a Corto Plazo | F44: =SUM(F45:F47) -> 0 | G44: =SUM(G45:G47) -> 0
A45: Bienes en Garantía (excluye depósitos de fondos) | E45: Ingresos por Clasificar
A46: Bienes Derivados de Embargos, Decomisos, Aseguramientos y Dación en Pago | E46: Recaudación por Participar
A47: Adquisición con Fondos de Terceros | E47: Otros Pasivos Circulantes
A49: Total de Activos Circulantes | B49: =B11+B19+B27+B33+B40+B43 -> 4,285,487 | C49: =C11+C19+C27+C33+C40+C43 -> 5,997,954 | E49: Total de Pasivos Circulantes | F49: =F11+F21+F25+F28+F29+F33+F40+F44 -> 1,360,034 | G49: 5,579,617
A51: Activo No Circulante | E51: Pasivo No Circulante
A52: Inversiones Financieras a Largo Plazo | E52: Cuentas por Pagar a Largo Plazo | F52: 0 | G52: 0
A53: Derechos a Recibir Efectivo o Equivalentes a Largo Plazo | E53: Documentos por Pagar a Largo Plazo
A54: Bienes Inmuebles, Infraestructura y Construcciones en Proceso | B54: 56,084,600 | C54: 56,084,600 | E54: Deuda Pública a Largo Plazo
A55: Bienes Muebles | B55: 45,447,557 | C55: 45,258,533 | E55: Pasivos Diferidos a Largo Plazo
A56: Activos Intangibles | B56: 1,292,917 | C56: 1,292,917 | E56: Fondos y Bienes de Terceros en Garantía y/o en Administración a Largo Plazo
A57: Depreciación, Deterioro y Amortización Acumulada de Bienes | B57: -24,391,574 | C57: -21,592,576 | E57: Provisiones a Largo Plazo
A58: Activos Diferidos
A59: Estimación por Pérdida o Deterioro de Activos no Circulantes | E59: Total de Pasivos No Circulantes | F59: =SUM(F52:F57) -> 0 | G59: =SUM(G52:G57) -> 0
A60: Otros Activos no Circulantes
E61: Total del Pasivo | F61: =F49+F59 -> 1,360,034 | G61: =G49+G59 -> 5,579,617
A62: Total de Activos No Circulantes | B62: =SUM(B52:B60) -> 78,433,500 | C62: =SUM(C52:C60) -> 81,043,474
E63: HACIENDA PÚBLICA/PATRIMONIO
A64: Total del Activo | B64: =SUM(B49+B62) -> 82,718,987 | C64: =SUM(C49+C62) -> 87,041,428
E65: Hacienda Pública/Patrimonio Contribuido | F65: 3,291,764 | G65: =SUM(G66:G68) -> 3,291,764
E66: Aportaciones
E67: Donaciones de Capital | F67: 2,810,997 | G67: 2,810,997
E68: Actualización de la Hacienda Pública/Patrimonio | F68: 480,766 | G68: 480,766
E70: Hacienda Pública/Patrimonio Generado | F70: =SUM(F71:F75) -> 78,067,189 | G70: =SUM(G71:G75) -> 78,170,048
E71: Resultados del Ejercicio (Ahorro/ Desahorro) | F71: 506,384 | G71: -1,204,191
E72: Resultados de Ejercicios Anteriores | F72: 77,560,805 | G72: 79,374,238
E73: Revalúos
E74: Reservas
E75: Rectificaciones de Resultados de Ejercicios Anteriores
E77: Exceso o Insuficiencia en la Actualización de la Hacienda Pública/Patrimonio | F77: =F78+F79 -> 0 | G77: =G78+G79 -> 0
E78: Resultado por Posición Monetaria
E79: Resultado por Tenencia de Activos no Monetarios
E81: Total Hacienda Pública/Patrimonio | F81: =F65+F70+F77 -> 81,358,953 | G81: =G65+G70+G77 -> 81,461,811
E83: Total del Pasivo y Hacienda Pública/Patrimonio | F83: =F61+F81 -> 82,718,987 | G83: =G61+G81 -> 87,041,428
